fUSD/lending_fUSD_20251001
["ID","MTS","AMOUNT","RATE_DAILY","PERIOD"]
[388675980,1759315840549,-314.92386118,0.00021917,2]
[388675983,1759315840562,-632.72613882,0.00021917,2]
[388675985,1759315840572,-24.19720217,0.00021917,2]
[388675994,1759315840653,-475.80279783,0.00021917,2]
[388675996,1759315840662,-500.0,0.00021917,2]
[388675998,1759315840671,-32.18293757,0.00021917,2]
[388676154,1759315842191,-337.90446,0.00021917,2]
[388676156,1759315842208,-129.91260243,0.00021917,2]
[388676158,1759315842218,-921.44,0.00021917,2]
[388676160,1759315842228,-1252.97,0.00021917,2]
[388676162,1759315842238,-988.03,0.00021917,2]
[388676164,1759315842248,-511.5625326,0.00021917,2]
[388676166,1759315842259,-2390.91,0.00021917,2]
[388676168,1759315842269,-500.0,0.00021917,2]
[388676171,1759315842280,-151.0,0.00021917,2]
[388676173,1759315842291,-500.0,0.00021917,2]
[388676175,1759315842301,-500.0,0.00021917,2]
[388676177,1759315842310,-500.0,0.00021917,2]
[388676179,1759315842320,-500.0,0.00021917,2]
[388676181,1759315842330,-500.0,0.00021917,2]
[388676183,1759315842339,-500.0,0.00021917,2]
[388676185,1759315842349,-500.0,0.00021917,2]
[388676187,1759315842358,-1853.6,0.00021917,2]
[388676189,1759315842368,-500.0,0.00021917,2]
[388676191,1759315842378,-52.6075354,0.00021917,2]
[388676309,1759315843381,-200.0,0.00021904,2]
[388676311,1759315843393,-447.3924646,0.00021917,2]
[388676313,1759315843403,-500.0,0.00021917,2]
[388676315,1759315843413,-151.0,0.00021917,2]
[388676317,1759315843423,-500.0,0.00021917,2]
[388676319,1759315843434,-500.0,0.00021917,2]
[388676321,1759315843444,-1160.65,0.00021917,2]
[388676323,1759315843454,-920.14,0.00021917,2]
[388676325,1759315843463,-500.0,0.00021917,2]
[388676327,1759315843473,-500.0,0.00021917,2]
[388676329,1759315843483,-1594.09,0.00021917,2]
[388676331,1759315843493,-500.0,0.00021917,2]
[388676333,1759315843503,-500.0,0.00021917,2]
[388676336,1759315843513,-500.0,0.00021917,2]
[388676338,1759315843523,-500.0,0.00021917,2]
[388676340,1759315843533,-500.0,0.00021917,2]
[388676343,1759315843543,-500.0,0.00021917,2]
[388676346,1759315843552,-500.0,0.00021917,2]
[388676349,1759315843561,-407.13310114,0.00021917,2]
[388676353,1759315843572,-500.0,0.00021917,2]
[388676356,1759315843582,-500.0,0.00021917,2]
[388676359,1759315843592,-500.0,0.00021917,2]
[388676362,1759315843602,-500.0,0.00021917,2]
[388676364,1759315843612,-1790.58,0.00021917,2]
[388676366,1759315843622,-500.0,0.00021917,2]
[388676368,1759315843632,-500.0,0.00021917,2]
[388676370,1759315843642,-500.0,0.00021917,2]
[388676372,1759315843652,-500.0,0.00021917,2]
[388676374,1759315843662,-500.0,0.00021917,2]
[388676376,1759315843672,-706.17,0.00021917,2]
[388676378,1759315843683,-500.0,0.00021917,2]
[388676380,1759315843692,-500.0,0.00021917,2]
[388676382,1759315843702,-500.0,0.00021917,2]
[388676384,1759315843712,-501.33278156,0.00021917,2]
[388676386,1759315843722,-511.94,0.00021917,2]
[388676388,1759315843732,-1187.34,0.00021917,2]
[388676390,1759315843741,-500.0,0.00021917,2]
[388676392,1759315843751,-500.0,0.00021917,2]
[388676394,1759315843760,-839.28,0.00021917,2]
[388676396,1759315843770,-500.0,0.00021917,2]
[388676398,1759315843780,-500.0,0.00021917,2]
[388676400,1759315843789,-500.0,0.00021917,2]
[388676402,1759315843799,-500.0,0.00021917,2]
[388676404,1759315843809,-629.55,0.00021917,2]
[388676406,1759315843818,-500.0,0.00021917,2]
[388676408,1759315843828,-500.0,0.00021917,2]
[388676410,1759315843837,-500.0,0.00021917,2]
[388676412,1759315843847,-759.68,0.00021917,2]
[388676414,1759315843856,-500.0,0.00021917,2]
[388676416,1759315843866,-500.0,0.00021917,2]
[388676417,1759315843875,-938.49,0.00021917,2]
[388676418,1759315844056,-500.0,0.00021917,2]
[388676420,1759315844066,-635.98,0.00021917,2]
[388676422,1759315844076,-500.0,0.00021917,2]
[388676424,1759315844086,-754.8,0.00021917,2]
[388676426,1759315844097,-500.0,0.00021917,2]
[388676428,1759315844107,-500.0,0.00021917,2]
[388676430,1759315844121,-500.0,0.00021917,2]
[388676433,1759315844132,-500.0,0.00021917,2]
[388676435,1759315844142,-500.0,0.00021917,2]
[388676437,1759315844152,-500.0,0.00021917,2]
[388676439,1759315844163,-500.0,0.00021917,2]
[388676441,1759315844173,-500.0,0.00021917,2]
[388676443,1759315844182,-500.0,0.00021917,2]
[388676445,1759315844192,-561.76,0.00021917,2]
[388676447,1759315844204,-500.0,0.00021917,2]
[388676449,1759315844213,-500.0,0.00021917,2]
[388676451,1759315844222,-500.0,0.00021917,2]
[388676453,1759315844231,-500.0,0.00021917,2]
[388676455,1759315844241,-500.0,0.00021917,2]
[388676457,1759315844251,-500.0,0.00021917,2]
[388676459,1759315844261,-500.0,0.00021917,2]
[388676461,1759315844270,-500.0,0.00021917,2]
[388676463,1759315844280,-1791.26,0.00021917,2]
[388676464,1759315844289,-1252.03,0.00021917,2]
[388676467,1759315844299,-500.0,0.00021917,2]
[388676468,1759315844308,-500.0,0.00021917,2]
[388676471,1759315844318,-500.0,0.00021917,2]
[388676473,1759315844328,-500.0,0.00021917,2]
[388676475,1759315844337,-500.0,0.00021917,2]
[388676477,1759315844347,-1662.63,0.00021917,2]
[388676479,1759315844356,-500.0,0.00021917,2]
[388676481,1759315844365,-500.0,0.00021917,2]
[388676483,1759315844374,-701.72,0.00021917,2]
[388676485,1759315844384,-711.56,0.00021917,2]
[388676487,1759315844393,-500.0,0.00021917,2]
[388676489,1759315844402,-500.0,0.00021917,2]
[388676491,1759315844412,-1037.17,0.00021917,2]
[388676493,1759315844421,-500.0,0.00021917,2]
[388676495,1759315844431,-500.0,0.00021917,2]
[388676496,1759315844440,-500.0,0.00021917,2]
[388676498,1759315844450,-151.0,0.00021917,2]
[388676500,1759315844460,-859.84,0.00021917,2]
[388676502,1759315844470,-500.0,0.00021917,2]
[388676504,1759315844479,-544.84,0.00021917,2]
[388676506,1759315844489,-151.0,0.00021917,2]
[388676508,1759315844498,-500.0,0.00021917,2]
[388676510,1759315844508,-510.99,0.00021917,2]
[388676512,1759315844518,-676.44,0.00021917,2]
[388676514,1759315844527,-500.0,0.00021917,2]
[388676516,1759315844537,-575.8,0.00021917,2]
[388676518,1759315844546,-580.29,0.00021917,2]
[388676520,1759315844556,-500.0,0.00021917,2]
[388676522,1759315844565,-836.48,0.00021917,2]
[388676524,1759315844574,-1414.29,0.00021917,2]
[388676526,1759315844584,-500.0,0.00021917,2]
[388676528,1759315844594,-500.0,0.00021917,2]
[388676530,1759315844605,-500.0,0.00021917,2]
[388676532,1759315844615,-500.0,0.00021917,2]
[388676534,1759315844625,-500.0,0.00021917,2]
[388676537,1759315844635,-500.0,0.00021917,2]
[388676539,1759315844644,-1224.65,0.00021917,2]
[388676541,1759315844654,-630.16,0.00021917,2]
[388676543,1759315844664,-349.19775429,0.00021917,2]
[388676545,1759315844674,-500.0,0.00021917,2]
[388676547,1759315844683,-151.0,0.00021917,2]
[388676548,1759315844694,-500.0,0.00021917,2]
[388676550,1759315844703,-151.0,0.00021917,2]
[388676552,1759315844712,-500.0,0.00021917,2]
[388676555,1759315844723,-500.0,0.00021917,2]
[388676557,1759315844733,-500.0,0.00021917,2]
[388676559,1759315844742,-500.0,0.00021917,2]
[388676560,1759315844752,-500.0,0.00021917,2]
[388676562,1759315844762,-1852.69,0.00021917,2]
[388676565,1759315844772,-500.0,0.00021917,2]
[388676567,1759315844781,-502.69778964,0.00021917,2]
[388676569,1759315844792,-500.60733523,0.00021917,2]
[388676571,1759315844802,-500.0,0.00021917,2]
[388676573,1759315844814,-151.0,0.00021917,2]
[388676575,1759315844823,-500.19355083,0.00021917,2]
[388676577,1759315844832,-500.0,0.00021917,2]
[388676579,1759315844842,-152.755246,0.00021917,2]
[388676581,1759315844851,-500.0,0.00021917,2]
[388676583,1759315844861,-500.0,0.00021917,2]
[388676585,1759315844871,-2234.81,0.00021917,2]
[388676587,1759315844880,-1063.17,0.00021917,2]
[388676589,1759315844892,-846.49,0.00021917,2]
[388676591,1759315844901,-500.0,0.00021917,2]
[388676593,1759315844911,-754.61,0.00021917,2]
[388676595,1759315844921,-500.0,0.00021917,2]
[388676597,1759315844931,-500.0,0.00021917,2]
[388676599,1759315844940,-500.0,0.00021917,2]
[388676601,1759315844950,-500.0,0.00021917,2]
[388676603,1759315844959,-500.0,0.00021917,2]
[388676605,1759315844969,-1328.59,0.00021917,2]
[388676607,1759315844979,-500.0,0.00021917,2]
[388676609,1759315844988,-502.59582504,0.00021917,2]
[388676611,1759315844998,-500.0,0.00021917,2]
[388676613,1759315845008,-1304.62,0.00021917,2]
[388676615,1759315845019,-500.0,0.00021917,2]
[388676617,1759315845028,-777.73,0.00021917,2]
[388676619,1759315845037,-1063.19,0.00021917,2]
[388676621,1759315845047,-595.07,0.00021917,2]
[388676623,1759315845056,-500.0,0.00021917,2]
[388676625,1759315845066,-500.0,0.00021917,2]
[388676627,1759315845075,-529.93,0.00021917,2]
[388676629,1759315845086,-500.0,0.00021917,2]
[388676631,1759315845095,-1211.87,0.00021917,2]
[388676633,1759315845105,-500.0,0.00021917,2]
[388676635,1759315845118,-500.0,0.00021917,2]
[388676638,1759315845131,-500.0,0.00021917,2]
[388676640,1759315845140,-500.0,0.00021917,2]
[388676642,1759315845150,-2581.97,0.00021917,2]
[388676644,1759315845160,-500.0,0.00021917,2]
[388676646,1759315845169,-578.67,0.00021917,2]
[388676648,1759315845178,-2170.76,0.00021917,2]
[388676649,1759315845187,-981.5,0.00021917,2]
[388676652,1759315845198,-500.0,0.00021917,2]
[388676653,1759315845207,-1758.07,0.00021917,2]
[388676655,1759315845217,-500.0,0.00021917,2]
[388676657,1759315845226,-500.0,0.00021917,2]
[388676660,1759315845236,-1816.76,0.00021917,2]
[388676661,1759315845246,-500.0,0.00021917,2]
[388676663,1759315845255,-503.96,0.00021917,2]
[388676665,1759315845264,-500.0,0.00021917,2]
[388676667,1759315845274,-3579.39,0.00021917,2]
[388676669,1759315845283,-500.0,0.00021917,2]
[388676671,1759315845292,-921.46,0.00021917,2]
[388676673,1759315845302,-500.0,0.00021917,2]
[388676675,1759315845312,-1809.81,0.00021917,2]
[388676677,1759315845322,-500.0,0.00021917,2]
[388676679,1759315845332,-1694.71,0.00021917,2]
[388676681,1759315845341,-633.83,0.00021917,2]
[388676683,1759315845350,-500.0,0.00021917,2]
[388676685,1759315845359,-687.7,0.00021917,2]
[388676687,1759315845368,-440.96899445,0.00021917,2]
[388676689,1759315845378,-617.17,0.00021917,2]
[388676691,1759315845388,-500.0,0.00021917,2]
[388676693,1759315845397,-500.0,0.00021917,2]
[388676695,1759315845406,-500.0,0.00021917,2]
[388676697,1759315845415,-1328.26,0.00021917,2]
[388676699,1759315845425,-725.19,0.00021917,2]
[388676701,1759315845435,-500.0,0.00021917,2]
[388676703,1759315845444,-500.0,0.00021917,2]
[388676705,1759315845456,-500.0,0.00021917,2]
[388676708,1759315845465,-1328.84,0.00021917,2]
[388676709,1759315845475,-500.0,0.00021917,2]
[388676713,1759315845484,-500.91068958,0.00021917,2]
[388676715,1759315845494,-500.0,0.00021917,2]
[388676717,1759315845504,-7418.3913302,0.00021917,2]
[388676719,1759315845514,-500.0,0.00021917,2]
[388676721,1759315845524,-437.71465364,0.00021917,2]
[388676724,1759315845534,-2073.14,0.00021917,2]
[388676727,1759315845543,-676.0,0.00021917,2]
[388676729,1759315845553,-613.68,0.00021917,2]
[388676731,1759315845562,-1965.92,0.00021917,2]
[388676733,1759315845571,-2637.64,0.00021917,2]
[388676735,1759315845580,-500.0,0.00021917,2]
[388676736,1759315845589,-1710.72,0.00021917,2]
[388676738,1759315845599,-2449.55,0.00021917,2]
[388676739,1759315845608,-500.0,0.00021917,2]
[388676741,1759315845618,-500.0,0.00021917,2]
[388676743,1759315845627,-2338.43,0.00021917,2]
[388676745,1759315845636,-2779.04,0.00021917,2]
[388676747,1759315845646,-500.0,0.00021917,2]
[388676749,1759315845655,-4502.75,0.00021917,2]
[388676751,1759315845664,-2294.58,0.00021917,2]
[388676753,1759315845674,-518.07,0.00021917,2]
[388676755,1759315845683,-500.0,0.00021917,2]
[388676757,1759315845693,-3347.74,0.00021917,2]
[388676759,1759315845702,-520.08697759,0.00021917,2]
[388676761,1759315845711,-774.28,0.00021917,2]
[388676763,1759315845720,-500.0,0.00021917,2]
[388676765,1759315845729,-500.0,0.00021917,2]
[388676767,1759315845739,-2497.72,0.00021917,2]
[388676769,1759315845751,-500.0,0.00021917,2]
[388676771,1759315845760,-500.0,0.00021917,2]
[388676773,1759315845770,-155.901192,0.00021917,2]
[388676775,1759315845780,-2927.57,0.00021917,2]
[388676777,1759315845789,-500.0,0.00021917,2]
[388676779,1759315845799,-500.0,0.00021917,2]
[388676781,1759315845808,-1262.93,0.00021917,2]
[388676783,1759315845818,-1047.77,0.00021917,2]
[388676785,1759315845828,-1693.05,0.00021917,2]
[388676787,1759315845838,-500.0,0.00021917,2]
[388676789,1759315845847,-1574.77,0.00021917,2]
[388676791,1759315845856,-1217.75,0.00021917,2]
[388676793,1759315845865,-773.85,0.00021917,2]
[388676795,1759315845874,-681.09,0.00021917,2]
[388676797,1759315845883,-500.0,0.00021917,2]
[388676799,1759315845893,-3236.84,0.00021917,2]
[388676801,1759315845902,-648.87,0.00021917,2]
[388676803,1759315845911,-702.21,0.00021917,2]
[388676805,1759315845920,-500.0,0.00021917,2]
[388676807,1759315845930,-500.0,0.00021917,2]
[388676809,1759315845939,-2678.4,0.00021917,2]
[388676811,1759315845951,-253.058051,0.00021917,2]
[388676813,1759315845960,-500.0,0.00021917,2]
[388676815,1759315845969,-1297.0,0.00021917,2]
[388676817,1759315845978,-500.0,0.00021917,2]
[388676819,1759315845987,-1060.39,0.00021917,2]
[388676820,1759315845997,-500.0,0.00021917,2]
[388676823,1759315846007,-1342.29,0.00021917,2]
[388676825,1759315846016,-500.15528662,0.00021917,2]
[388676826,1759315846025,-500.0,0.00021917,2]
[388676828,1759315846034,-151.0,0.00021917,2]
[388676830,1759315846043,-2780.28,0.00021917,2]
[388676832,1759315846053,-1485.63,0.00021917,2]
[388676834,1759315846062,-500.0,0.00021917,2]
[388676836,1759315846071,-833.61,0.00021917,2]
[388676838,1759315846080,-547.31193421,0.00021917,2]
[388676840,1759315846089,-778.54,0.00021917,2]
[388676842,1759315846098,-500.0,0.00021917,2]
[388676844,1759315846106,-500.0,0.00021917,2]
[388676846,1759315846117,-798.0,0.00021917,2]
[388676848,1759315846130,-500.0,0.00021917,2]
[388676850,1759315846139,-3536.77,0.00021917,2]
[388676852,1759315846148,-4064.48,0.00021917,2]
[388676854,1759315846158,-1136.21,0.00021917,2]
[388676856,1759315846168,-500.0,0.00021917,2]
[388676858,1759315846178,-500.50744727,0.00021917,2]
[388676860,1759315846187,-427.72026819,0.00021917,2]
[388676862,1759315846196,-3524.49,0.00021917,2]
[388676864,1759315846208,-500.0,0.00021917,2]
[388676865,1759315846218,-872.13,0.00021917,2]
[388676867,1759315846227,-500.0,0.00021917,2]
[388676869,1759315846236,-2660.5,0.00021917,2]
[388676871,1759315846246,-901.25,0.00021917,2]
[388676873,1759315846255,-1217.55,0.00021917,2]
[388676875,1759315846265,-500.0,0.00021917,2]
[388676877,1759315846274,-848.94,0.00021917,2]
[388676879,1759315846283,-500.0,0.00021917,2]
[388676881,1759315846292,-151.0,0.00021917,2]
[388676883,1759315846302,-2086.59,0.00021917,2]
[388676885,1759315846311,-500.0,0.00021917,2]
[388676887,1759315846321,-1182.1,0.00021917,2]
[388676889,1759315846330,-500.0,0.00021917,2]
[388676891,1759315846339,-3106.07,0.00021917,2]
[388676893,1759315846349,-560.24,0.00021917,2]
[388676895,1759315846358,-500.0,0.00021917,2]
[388676897,1759315846367,-153.028755,0.00021917,2]
[388676899,1759315846376,-2722.87,0.00021917,2]
[388676901,1759315846385,-819.9,0.00021917,2]
[388676903,1759315846395,-2203.86,0.00021917,2]
[388676905,1759315846404,-3421.28,0.00021917,2]
[388676907,1759315846413,-2616.54,0.00021917,2]
[388676909,1759315846422,-1748.13,0.00021917,2]
[388676911,1759315846432,-1376.6,0.00021917,2]
[388676914,1759315846443,-695.95,0.00021917,2]
[388676917,1759315846453,-500.0,0.00021917,2]
[388676919,1759315846463,-2313.67,0.00021917,2]
[388676921,1759315846472,-500.0,0.00021917,2]
[388676923,1759315846481,-500.0,0.00021917,2]
[388676925,1759315846491,-1648.74,0.00021917,2]
[388676927,1759315846501,-503.06,0.00021917,2]
[388676929,1759315846510,-1169.23,0.00021917,2]
[388676931,1759315846520,-500.0,0.00021917,2]
[388676933,1759315846530,-500.0,0.00021917,2]
[388676935,1759315846539,-700.66,0.00021917,2]
[388676937,1759315846548,-891.38,0.00021917,2]
[388676939,1759315846557,-500.0,0.00021917,2]
[388676941,1759315846566,-1500.49,0.00021917,2]
[388676943,1759315846575,-151.0,0.00021917,2]
[388676945,1759315846584,-500.0,0.00021917,2]
[388676947,1759315846593,-2232.72,0.00021917,2]
[388676949,1759315846602,-3049.84,0.00021917,2]
[388676951,1759315846612,-500.0,0.00021917,2]
[388676953,1759315846621,-500.0,0.00021917,2]
[388676955,1759315846630,-500.0,0.00021917,2]
[388676957,1759315846639,-914.33,0.00021917,2]
[388676959,1759315846649,-530.16554362,0.00021917,2]
[388676961,1759315846658,-2824.39,0.00021917,2]
[388676963,1759315846667,-500.0,0.00021917,2]
[388676965,1759315846676,-1309.15,0.00021917,2]
[388676967,1759315846685,-500.0,0.00021917,2]
[388676969,1759315846694,-500.0,0.00021917,2]
[388676971,1759315846704,-524.06,0.00021917,2]
[388676973,1759315846713,-1618.39,0.00021917,2]
[388676975,1759315846723,-500.0,0.00021917,2]
[388676977,1759315846733,-500.0,0.00021917,2]
[388676979,1759315846742,-1965.89,0.00021917,2]
[388676981,1759315846751,-151.0,0.00021917,2]
[388676983,1759315846760,-1474.07,0.00021917,2]
[388676985,1759315846769,-500.0,0.00021917,2]
[388676987,1759315846779,-744.7,0.00021917,2]
[388676989,1759315846788,-500.0,0.00021917,2]
[388676991,1759315846797,-2106.95,0.00021917,2]
[388676993,1759315846806,-1184.75,0.00021917,2]
[388676995,1759315846816,-2134.49,0.00021917,2]
[388676998,1759315846829,-500.0,0.00021917,2]
[388677000,1759315846839,-500.0,0.00021917,2]
[388677002,1759315846847,-2909.47,0.00021917,2]
[388677004,1759315846857,-1423.39,0.00021917,2]
[388677006,1759315846866,-500.0,0.00021917,2]
[388677008,1759315846875,-1036.65,0.00021917,2]
[388677010,1759315846884,-500.0,0.00021917,2]
[388677012,1759315846893,-2004.93,0.00021917,2]
[388677014,1759315846903,-500.0,0.00021917,2]
[388677016,1759315846913,-500.0,0.00021917,2]
[388677018,1759315846922,-500.0,0.00021917,2]
[388677020,1759315846931,-2134.12,0.00021917,2]
[388677022,1759315846941,-2400.57,0.00021917,2]
[388677024,1759315846950,-500.0,0.00021917,2]
[388677026,1759315846959,-500.0,0.00021917,2]
[388677028,1759315846968,-151.0,0.00021917,2]
[388677030,1759315846977,-596.72,0.00021917,2]
[388677032,1759315846986,-500.0,0.00021917,2]
[388677034,1759315846996,-2422.19,0.00021917,2]
[388677036,1759315847006,-2398.98,0.00021917,2]
[388677038,1759315847015,-151.0,0.00021917,2]
[388677040,1759315847024,-500.0,0.00021917,2]
[388677042,1759315847034,-1241.94,0.00021917,2]
[388677044,1759315847043,-3139.99,0.00021917,2]
[388677046,1759315847058,-500.0,0.00021917,2]
[388677048,1759315847068,-3250.5,0.00021917,2]
[388677050,1759315847078,-151.0,0.00021917,2]
[388677052,1759315847087,-151.0,0.00021917,2]
[388677054,1759315847096,-500.0,0.00021917,2]
[388677056,1759315847106,-500.0,0.00021917,2]
[388677058,1759315847116,-160.517148,0.00021917,2]
[388677060,1759315847127,-151.0,0.00021917,2]
[388677062,1759315847136,-2145.49,0.00021917,2]
[388677063,1759315847145,-1906.93,0.00021917,2]
[388677065,1759315847155,-500.0,0.00021917,2]
[388677067,1759315847166,-690.88,0.00021917,2]
[388677069,1759315847175,-665.88,0.00021917,2]
[388677070,1759315847184,-2838.72,0.00021917,2]
[388677071,1759315847194,-3273.42,0.00021917,2]
[388677072,1759315847205,-2485.48,0.00021917,2]
[388677073,1759315847214,-516.65,0.00021917,2]
[388677074,1759315847223,-2223.21,0.00021917,2]
[388677075,1759315847233,-694.64,0.00021917,2]
[388677076,1759315847244,-151.0,0.00021917,2]
[388677077,1759315847253,-2614.24,0.00021917,2]
[388677078,1759315847264,-500.0,0.00021917,2]
[388677079,1759315847275,-806.71,0.00021917,2]
[388677080,1759315847285,-1351.66,0.00021917,2]
[388677081,1759315847297,-2456.21,0.00021917,2]
[388677082,1759315847307,-500.62963039,0.00021917,2]
[388677083,1759315847317,-500.0,0.00021917,2]
[388677084,1759315847327,-2170.49,0.00021917,2]
[388677085,1759315847336,-804.24,0.00021917,2]
[388677086,1759315847346,-500.0,0.00021917,2]
[388677088,1759315847355,-500.0,0.00021917,2]
[388677090,1759315847365,-1134.87,0.00021917,2]
[388677091,1759315847374,-500.0,0.00021917,2]
[388677094,1759315847384,-500.0,0.00021917,2]
[388677096,1759315847397,-1954.67,0.00021917,2]
[388677098,1759315847408,-1569.22,0.00021917,2]
[388677100,1759315847418,-500.0,0.00021917,2]
[388677101,1759315847427,-500.0,0.00021917,2]
[388677103,1759315847437,-1724.0,0.00021917,2]
[388677105,1759315847446,-500.0,0.00021917,2]
[388677107,1759315847456,-2606.75,0.00021917,2]
[388677109,1759315847466,-1402.79,0.00021917,2]
[388677112,1759315847476,-500.0,0.00021917,2]
[388677114,1759315847485,-500.0,0.00021917,2]
[388677116,1759315847494,-500.0,0.00021917,2]
[388677118,1759315847503,-151.0,0.00021917,2]
[388677120,1759315847512,-151.0,0.00021917,2]
[388677121,1759315847523,-500.0,0.00021917,2]
[388677123,1759315847532,-500.0,0.00021917,2]
[388677125,1759315847541,-3610.33,0.00021917,2]
[388677127,1759315847550,-594.13,0.00021917,2]
[388677129,1759315847560,-500.69307564,0.00021917,2]
[388677131,1759315847569,-500.0,0.00021917,2]
[388677133,1759315847579,-492.28453604,0.00021917,2]
[388677135,1759315847588,-1743.31,0.00021917,2]
[388677137,1759315847597,-544.54,0.00021917,2]
[388677139,1759315847607,-826.72,0.00021917,2]
[388677141,1759315847616,-500.0,0.00021917,2]
[388677143,1759315847626,-523.03429856,0.00021917,2]
[388677145,1759315847635,-151.0,0.00021917,2]
[388677147,1759315847645,-151.0,0.00021917,2]
[388677149,1759315847655,-2681.95,0.00021917,2]
[388677152,1759315847665,-500.0,0.00021917,2]
[388677153,1759315847674,-500.0,0.00021917,2]
[388677155,1759315847683,-2108.82,0.00021917,2]
[388677157,1759315847692,-151.0,0.00021917,2]
[388677159,1759315847703,-270.525583,0.00021917,2]
[388677162,1759315847712,-500.0,0.00021917,2]
[388677163,1759315847722,-500.0,0.00021917,2]
[388677166,1759315847731,-3044.91,0.00021917,2]
[388677167,1759315847740,-500.0,0.00021917,2]
[388677169,1759315847749,-1969.37,0.00021917,2]
[388677171,1759315847759,-1822.26,0.00021917,2]
[388677174,1759315847777,-500.0,0.00021917,2]
[388677177,1759315847788,-1053.74,0.00021917,2]
[388677179,1759315847797,-502.78845796,0.00021917,2]
[388677181,1759315847806,-612.07,0.00021917,2]
[388677183,1759315847815,-3168.07,0.00021917,2]
[388677185,1759315847825,-500.0,0.00021917,2]
[388677187,1759315847834,-443.1640205,0.00021917,2]
[388677189,1759315847843,-2774.25,0.00021917,2]
[388677191,1759315847852,-521.34,0.00021917,2]
[388677193,1759315847862,-2586.14,0.00021917,2]
[388677195,1759315847871,-552.27,0.00021917,2]
[388677197,1759315847880,-2341.18,0.00021917,2]
[388677199,1759315847889,-1967.13,0.00021917,2]
[388677201,1759315847899,-1022.78,0.00021917,2]
[388677203,1759315847908,-3006.68,0.00021917,2]
[388677205,1759315847918,-500.0,0.00021917,2]
[388677207,1759315847927,-500.0,0.00021917,2]
[388677209,1759315847937,-559.73,0.00021917,2]
[388677211,1759315847948,-500.0,0.00021917,2]
[388677213,1759315847958,-500.0,0.00021917,2]
[388677215,1759315847967,-151.0,0.00021917,2]
[388677217,1759315847976,-485.57645454,0.00021917,2]
[388677219,1759315847986,-151.0,0.00021917,2]
[388677221,1759315847995,-151.0,0.00021917,2]
[388677223,1759315848004,-151.0,0.00021917,2]
[388677225,1759315848015,-2631.07,0.00021917,2]
[388677227,1759315848024,-2724.05,0.00021917,2]
[388677229,1759315848034,-151.0,0.00021917,2]
[388677231,1759315848043,-151.0,0.00021917,2]
[388677233,1759315848053,-493.66439122,0.00021917,2]
[388677235,1759315848063,-160.40939,0.00021917,2]
[388677237,1759315848072,-500.0,0.00021917,2]
[388677239,1759315848082,-296.54088237,0.00021917,2]
[388677241,1759315848091,-500.0,0.00021917,2]
[388677243,1759315848100,-665.06,0.00021917,2]
[388677245,1759315848109,-500.0,0.00021917,2]
[388677247,1759315848125,-775.76,0.00021917,2]
[388677250,1759315848135,-500.0,0.00021917,2]
[388677252,1759315848144,-724.06,0.00021917,2]